[Event "Titled Tuesday Blitz March 07 Late 2023"]
[White "Zhu, Jiner"]
[Black "Corrales Jimenez, Fidel"]
[WhiteFideId "8608059"]
[BlackFideId "3506690"]
[WhiteElo "2384"]
[BlackElo "2541"]
[Result "1-0"]
[Round "09"]
[TimeControl "180+2"]
[Date "2023.03.07"]
[WhiteClock "0:00:09"]
[BlackClock "0:00:14"]

1. e4 {[%clk 0:03:00]}  c5 {[%clk 0:02:59]} 2. Nf3 {[%clk 0:03:01]}  d6 {[%clk 0:02:59]} 3. d4 {[%clk 0:03:01]}  cxd4 {[%clk 0:03:00]} 4. Nxd4 {[%clk 0:03:01]}  Nf6 {[%clk 0:03:00]} 5. Nc3 {[%clk 0:03:02]}  a6 {[%clk 0:03:01]} 6. Be3 {[%clk 0:03:02]}  e5 {[%clk 0:03:01]} 7. Nf3 {[%clk 0:03:02]}  Be7 {[%clk 0:02:59]} 8. Bc4 {[%clk 0:03:02]}  O-O {[%clk 0:02:59]} 9. O-O {[%clk 0:03:01]}  h6 {[%clk 0:03:00]} 10. Qe2 {[%clk 0:02:57]}  Nc6 {[%clk 0:03:00]} 11. Rfd1 {[%clk 0:02:57]}  Be6 {[%clk 0:03:00]} 12. Bb3 {[%clk 0:02:55]}  Rc8 {[%clk 0:02:54]} 13. Nh4 {[%clk 0:02:52]}  Bg4 {[%clk 0:02:47]} 14. f3 {[%clk 0:02:49]}  Be6 {[%clk 0:02:46]} 15. Ng6 {[%clk 0:02:28]}  Re8 {[%clk 0:02:44]} 16. Nxe7+ {[%clk 0:02:27]}  Qxe7 {[%clk 0:02:45]} 17. Nd5 {[%clk 0:02:09]}  Bxd5 {[%clk 0:02:45]} 18. Bxd5 {[%clk 0:02:05]}  Na5 {[%clk 0:02:43]} 19. c3 {[%clk 0:01:58]}  Nxd5 {[%clk 0:02:41]} 20. Rxd5 {[%clk 0:01:58]}  Nc4 {[%clk 0:02:42]} 21. Rad1 {[%clk 0:01:55]}  Nxe3 {[%clk 0:02:39]} 22. Qxe3 {[%clk 0:01:55]}  Rc6 {[%clk 0:02:40]} 23. R1d3 {[%clk 0:01:50]}  Qc7 {[%clk 0:02:38]} 24. Qd2 {[%clk 0:01:47]}  Re6 {[%clk 0:02:38]} 25. g3 {[%clk 0:01:44]}  b5 {[%clk 0:02:38]} 26. a3 {[%clk 0:01:43]}  Rf6 {[%clk 0:02:32]} 27. Kg2 {[%clk 0:01:43]}  h5 {[%clk 0:02:30]} 28. Qg5 {[%clk 0:01:40]}  Rh6 {[%clk 0:02:25]} 29. h4 {[%clk 0:01:36]}  Kf8 {[%clk 0:02:18]} 30. Rd2 {[%clk 0:01:33]}  f6 {[%clk 0:02:15]} 31. Qe3 {[%clk 0:01:32]}  Ke7 {[%clk 0:02:15]} 32. Rd1 {[%clk 0:01:30]}  Rh8 {[%clk 0:02:14]} 33. R1d3 {[%clk 0:01:29]}  Rb8 {[%clk 0:02:13]} 34. f4 {[%clk 0:01:26]}  exf4 {[%clk 0:01:59]} 35. gxf4 {[%clk 0:01:25]}  Kf7 {[%clk 0:01:52]} 36. e5 {[%clk 0:01:13]}  Re8 {[%clk 0:01:52]} 37. Qf3 {[%clk 0:01:12]}  Kg8 {[%clk 0:01:27]} 38. exd6 {[%clk 0:01:04]}  Qd7 {[%clk 0:01:25]} 39. Rd2 {[%clk 0:00:45]}  Rc4 {[%clk 0:01:23]} 40. R5d4 {[%clk 0:00:44]}  Rc5 {[%clk 0:01:23]} 41. Rd5 {[%clk 0:00:44]}  Rc4 {[%clk 0:01:23]} 42. R5d4 {[%clk 0:00:33]}  Rc5 {[%clk 0:01:23]} 43. Re2 {[%clk 0:00:32]}  Rxe2+ {[%clk 0:01:01]} 44. Qxe2 {[%clk 0:00:33]}  Rc8 {[%clk 0:01:01]} 45. Qxh5 {[%clk 0:00:25]}  Re8 {[%clk 0:00:58]} 46. Qf3 {[%clk 0:00:23]}  Re6 {[%clk 0:00:52]} 47. Qd5 {[%clk 0:00:21]}  f5 {[%clk 0:00:50]} 48. Kh2 {[%clk 0:00:15]}  Kh8 {[%clk 0:00:49]} 49. Qa8+ {[%clk 0:00:15]}  Kh7 {[%clk 0:00:49]} 50. Qf3 {[%clk 0:00:12]}  Re1 {[%clk 0:00:48]} 51. Qh5+ {[%clk 0:00:11]}  Kg8 {[%clk 0:00:48]} 52. Qf3 {[%clk 0:00:11]}  Qd8 {[%clk 0:00:45]} 53. Qf2 {[%clk 0:00:11]}  Re6 {[%clk 0:00:29]} 54. d7 {[%clk 0:00:11]}  Rh6 {[%clk 0:00:30]} 55. Kg1 {[%clk 0:00:11]}  Rg6+ {[%clk 0:00:30]} 56. Kf1 {[%clk 0:00:11]}  Kh7 {[%clk 0:00:31]} 57. Qe2 {[%clk 0:00:10]}  Rg4 {[%clk 0:00:31]} 58. Qe8 {[%clk 0:00:09]}  Qxh4 {[%clk 0:00:31]} 59. d8=Q {[%clk 0:00:09]}  Qh3+ {[%clk 0:00:27]} 60. Ke2 {[%clk 0:00:07]}  Rg2+ {[%clk 0:00:26]} 61. Kd1 {[%clk 0:00:08]}  Qh1+ {[%clk 0:00:11]} 62. Qe1 {[%clk 0:00:05]}  Qh5+ {[%clk 0:00:10]} 63. Kc1 {[%clk 0:00:05]}  Rh2 {[%clk 0:00:08]} 64. Rd2 {[%clk 0:00:04]}  Rh3 {[%clk 0:00:08]} 65. Kb1 {[%clk 0:00:04]}  Qf3 {[%clk 0:00:06]} 66. Qd4 {[%clk 0:00:04]}  Rh1 {[%clk 0:00:06]} 67. Qxh1+ {[%clk 0:00:03]}  Qxh1+ {[%clk 0:00:07]} 68. Ka2 {[%clk 0:00:04]}  b4 {[%clk 0:00:08]} 69. axb4 {[%clk 0:00:04]}  Qc6 {[%clk 0:00:05]} 70. Qd5 {[%clk 0:00:04]}  Qf6 {[%clk 0:00:04]} 71. Rh2+ {[%clk 0:00:04]}  Kg6 {[%clk 0:00:04]} 72. Rg2+ {[%clk 0:00:04]}  Kh7 {[%clk 0:00:04]} 73. Qe5 {[%clk 0:00:04]}  Qf8 {[%clk 0:00:04]} 74. Rxg7+ {[%clk 0:00:03]}  Qxg7 {[%clk 0:00:05]} 75. Qxg7+ {[%clk 0:00:04]}  Kxg7 {[%clk 0:00:05]} 76. c4 {[%clk 0:00:04]}  Kf6 {[%clk 0:00:06]} 77. b5 {[%clk 0:00:04]}  axb5 {[%clk 0:00:07]} 78. cxb5 {[%clk 0:00:05]}  Ke6 {[%clk 0:00:08]} 79. Kb3 {[%clk 0:00:06]}  Kd5 {[%clk 0:00:08]} 80. Kb4 {[%clk 0:00:06]}  Ke4 {[%clk 0:00:09]} 81. b6 {[%clk 0:00:06]}  Kxf4 {[%clk 0:00:10]} 82. b7 {[%clk 0:00:07]}  Ke3 {[%clk 0:00:11]} 83. b8=Q {[%clk 0:00:08]}  f4 {[%clk 0:00:12]} 84. Qe5+ {[%clk 0:00:08]}  Kf3 {[%clk 0:00:12]} 85. Kc3 {[%clk 0:00:09]}  Kg4 {[%clk 0:00:12]} 86. Kd3 {[%clk 0:00:09]}  f3 {[%clk 0:00:13]} 87. Ke3 {[%clk 0:00:09]}  f2 {[%clk 0:00:14]} 88. Kxf2 {[%clk 0:00:09]} 1-0


[Site "https://www.chess.com"]

[Event "Titled Tuesday Blitz March 07 Late 2023"]
[White "Cardoso Cardoso, Jose Gabriel"]
[Black "Yu, Yangyi"]
[WhiteFideId "4430492"]
[BlackFideId "8603820"]
[WhiteElo "2496"]
[BlackElo "2783"]
[Result "0-1"]
[Round "09"]
[TimeControl "180+2"]
[Date "2023.03.07"]
[WhiteClock "0:00:08"]
[BlackClock "0:02:12"]

1. d4 {[%clk 0:03:00]}  Nf6 {[%clk 0:02:59]} 2. c4 {[%clk 0:02:58]}  e6 {[%clk 0:02:59]} 3. Nc3 {[%clk 0:02:59]}  Bb4 {[%clk 0:02:58]} 4. Qc2 {[%clk 0:02:59]}  c5 {[%clk 0:02:56]} 5. dxc5 {[%clk 0:02:59]}  O-O {[%clk 0:02:56]} 6. Nf3 {[%clk 0:02:56]}  Na6 {[%clk 0:02:52]} 7. a3 {[%clk 0:02:56]}  Bxc3+ {[%clk 0:02:52]} 8. Qxc3 {[%clk 0:02:56]}  Nxc5 {[%clk 0:02:53]} 9. b4 {[%clk 0:02:57]}  Nce4 {[%clk 0:02:51]} 10. Qd4 {[%clk 0:02:43]}  d6 {[%clk 0:02:50]} 11. e3 {[%clk 0:02:30]}  e5 {[%clk 0:02:49]} 12. Qb2 {[%clk 0:02:29]}  Ng4 {[%clk 0:02:49]} 13. h3 {[%clk 0:01:27]}  Ngxf2 {[%clk 0:02:49]} 14. Rh2 {[%clk 0:01:27]}  Qf6 {[%clk 0:02:45]} 15. Be2 {[%clk 0:01:21]}  Be6 {[%clk 0:02:39]} 16. g4 {[%clk 0:01:17]}  Nd3+ {[%clk 0:02:29]} 17. Bxd3 {[%clk 0:01:16]}  Qxf3 {[%clk 0:02:29]} 18. Qg2 {[%clk 0:01:12]}  Ng5 {[%clk 0:02:19]} 19. Qf1 {[%clk 0:00:25]}  Qg3+ {[%clk 0:02:13]} 20. Rf2 {[%clk 0:00:08]}  Nxh3 {[%clk 0:02:12]} 0-1


[Site "https://www.chess.com"]

[Event "Titled Tuesday Blitz March 07 Late 2023"]
[White "Fus, Jakub"]
[Black "Yoo, Christopher Woojin"]
[WhiteFideId "1193023"]
[BlackFideId "30909694"]
[WhiteElo "2335"]
[BlackElo "2519"]
[Result "0-1"]
[Round "09"]
[TimeControl "180+2"]
[Date "2023.03.07"]
[WhiteClock "0:00:16"]
[BlackClock "0:01:02"]

1. e4 {[%clk 0:02:21]}  c5 {[%clk 0:02:58]} 2. Nf3 {[%clk 0:02:21]}  e6 {[%clk 0:02:58]} 3. c3 {[%clk 0:02:21]}  d5 {[%clk 0:02:57]} 4. exd5 {[%clk 0:02:21]}  Qxd5 {[%clk 0:02:58]} 5. d4 {[%clk 0:02:21]}  Nf6 {[%clk 0:02:58]} 6. Na3 {[%clk 0:02:20]}  a6 {[%clk 0:02:56]} 7. Nc4 {[%clk 0:02:15]}  Nbd7 {[%clk 0:02:54]} 8. Be2 {[%clk 0:02:01]}  b5 {[%clk 0:02:52]} 9. Ne3 {[%clk 0:01:52]}  Qc6 {[%clk 0:02:50]} 10. a4 {[%clk 0:01:49]}  Bb7 {[%clk 0:02:49]} 11. dxc5 {[%clk 0:01:33]}  Qxc5 {[%clk 0:02:44]} 12. axb5 {[%clk 0:01:30]}  axb5 {[%clk 0:02:45]} 13. Rxa8+ {[%clk 0:01:30]}  Bxa8 {[%clk 0:02:46]} 14. Nd4 {[%clk 0:01:19]}  b4 {[%clk 0:02:45]} 15. Qa4 {[%clk 0:01:18]}  Bb7 {[%clk 0:02:41]} 16. Nb3 {[%clk 0:01:17]}  Qc7 {[%clk 0:02:32]} 17. c4 {[%clk 0:01:13]}  Be7 {[%clk 0:02:27]} 18. O-O {[%clk 0:01:12]}  O-O {[%clk 0:02:26]} 19. Qa5 {[%clk 0:01:05]}  Qb8 {[%clk 0:02:10]} 20. Bd2 {[%clk 0:01:01]}  Be4 {[%clk 0:01:44]} 21. Ra1 {[%clk 0:00:58]}  Rc8 {[%clk 0:01:42]} 22. Qa7 {[%clk 0:00:47]}  Qe5 {[%clk 0:01:35]} 23. Qd4 {[%clk 0:00:44]}  Qxd4 {[%clk 0:01:23]} 24. Nxd4 {[%clk 0:00:44]}  Ne5 {[%clk 0:01:22]} 25. b3 {[%clk 0:00:32]}  Rd8 {[%clk 0:01:20]} 26. f3 {[%clk 0:00:16]}  Rxd4 {[%clk 0:01:05]} 27. fxe4 {[%clk 0:00:15]}  Rxd2 {[%clk 0:01:05]} 28. Ra8+ {[%clk 0:00:16]}  Bf8 {[%clk 0:01:02]} 0-1


[Site "https://www.chess.com"]

[Event "Titled Tuesday Blitz March 07 Late 2023"]
[White "Maksimovic, Bojan"]
[Black "Saveliev, Alexei"]
[WhiteFideId "14408120"]
[BlackFideId "24128546"]
[WhiteElo "2468"]
[BlackElo "2271"]
[Result "1-0"]
[Round "09"]
[TimeControl "180+2"]
[Date "2023.03.07"]
[WhiteClock "0:00:16"]
[BlackClock "0:00:21"]

1. Nf3 {[%clk 0:00:23]}  g6 {[%clk 0:02:59]} 2. g3 {[%clk 0:00:24]}  Bg7 {[%clk 0:03:00]} 3. Bg2 {[%clk 0:00:24]}  Nf6 {[%clk 0:03:01]} 4. O-O {[%clk 0:00:25]}  O-O {[%clk 0:03:01]} 5. d3 {[%clk 0:00:26]}  d6 {[%clk 0:03:02]} 6. Nbd2 {[%clk 0:00:26]}  c5 {[%clk 0:03:03]} 7. c3 {[%clk 0:00:27]}  Nc6 {[%clk 0:03:03]} 8. e4 {[%clk 0:00:27]}  e5 {[%clk 0:03:03]} 9. Qc2 {[%clk 0:00:26]}  Nh5 {[%clk 0:03:02]} 10. a3 {[%clk 0:00:27]}  f5 {[%clk 0:03:02]} 11. b4 {[%clk 0:00:26]}  f4 {[%clk 0:02:55]} 12. Bb2 {[%clk 0:00:24]}  Bg4 {[%clk 0:02:46]} 13. bxc5 {[%clk 0:00:22]}  dxc5 {[%clk 0:02:42]} 14. Qb3+ {[%clk 0:00:21]}  Kh8 {[%clk 0:02:43]} 15. Qxb7 {[%clk 0:00:22]}  Rc8 {[%clk 0:02:43]} 16. Qb3 {[%clk 0:00:21]}  Qxd3 {[%clk 0:02:38]} 17. Qd5 {[%clk 0:00:20]}  Qb5 {[%clk 0:02:33]} 18. Rab1 {[%clk 0:00:18]}  Rcd8 {[%clk 0:02:33]} 19. Qc4 {[%clk 0:00:18]}  Qb6 {[%clk 0:02:13]} 20. Ba1 {[%clk 0:00:17]}  Qa5 {[%clk 0:02:12]} 21. Rb5 {[%clk 0:00:17]}  Qxa3 {[%clk 0:02:09]} 22. Bb2 {[%clk 0:00:14]}  Qa6 {[%clk 0:02:07]} 23. Ra1 {[%clk 0:00:14]}  Qc8 {[%clk 0:02:02]} 24. Rxc5 {[%clk 0:00:15]}  Rd6 {[%clk 0:02:02]} 25. Ra6 {[%clk 0:00:14]}  fxg3 {[%clk 0:01:55]} 26. hxg3 {[%clk 0:00:12]}  Bd7 {[%clk 0:01:55]} 27. Rd5 {[%clk 0:00:10]}  Qb8 {[%clk 0:01:44]} 28. Rxd6 {[%clk 0:00:10]}  Qxd6 {[%clk 0:01:45]} 29. Ba3 {[%clk 0:00:11]}  Qf6 {[%clk 0:01:36]} 30. Bxf8 {[%clk 0:00:11]}  Bxf8 {[%clk 0:01:37]} 31. Qd5 {[%clk 0:00:11]}  Be8 {[%clk 0:01:29]} 32. Nxe5 {[%clk 0:00:11]}  Qxe5 {[%clk 0:01:22]} 33. Qxe5+ {[%clk 0:00:11]}  Nxe5 {[%clk 0:01:23]} 34. Re6 {[%clk 0:00:12]}  Bc6 {[%clk 0:01:09]} 35. Rxe5 {[%clk 0:00:12]}  Kg8 {[%clk 0:00:50]} 36. Ra5 {[%clk 0:00:12]}  Be8 {[%clk 0:00:34]} 37. Rxa7 {[%clk 0:00:11]}  Nxg3 {[%clk 0:00:34]} 38. Ra8 {[%clk 0:00:11]}  Ne2+ {[%clk 0:00:35]} 39. Kh1 {[%clk 0:00:11]}  Bf7 {[%clk 0:00:31]} 40. Nf3 {[%clk 0:00:10]}  Nxc3 {[%clk 0:00:30]} 41. Ng5 {[%clk 0:00:10]}  h6 {[%clk 0:00:28]} 42. Nxf7 {[%clk 0:00:09]}  Kxf7 {[%clk 0:00:29]} 43. f4 {[%clk 0:00:09]}  Ne2 {[%clk 0:00:25]} 44. f5 {[%clk 0:00:09]}  gxf5 {[%clk 0:00:25]} 45. exf5 {[%clk 0:00:10]}  Ng3+ {[%clk 0:00:25]} 46. Kh2 {[%clk 0:00:10]}  Nxf5 {[%clk 0:00:26]} 47. Kh3 {[%clk 0:00:11]}  Be7 {[%clk 0:00:25]} 48. Be4 {[%clk 0:00:10]}  Nd6 {[%clk 0:00:25]} 49. Bd5+ {[%clk 0:00:10]}  Kf6 {[%clk 0:00:25]} 50. Kg4 {[%clk 0:00:11]}  Nf5 {[%clk 0:00:24]} 51. Ra6+ {[%clk 0:00:10]}  Ke5 {[%clk 0:00:22]} 52. Ba2 {[%clk 0:00:06]}  Nd4 {[%clk 0:00:16]} 53. Ra5+ {[%clk 0:00:05]}  Ke4 {[%clk 0:00:15]} 54. Bb1+ {[%clk 0:00:05]}  Ke3 {[%clk 0:00:12]} 55. Re5+ {[%clk 0:00:05]}  Kd2 {[%clk 0:00:12]} 56. Rxe7 {[%clk 0:00:06]}  Kc1 {[%clk 0:00:07]} 57. Bf5 {[%clk 0:00:06]}  Nc6 {[%clk 0:00:08]} 58. Rc7 {[%clk 0:00:05]}  Kd2 {[%clk 0:00:08]} 59. Rxc6 {[%clk 0:00:06]}  h5+ {[%clk 0:00:09]} 60. Kxh5 {[%clk 0:00:06]}  Ke3 {[%clk 0:00:10]} 61. Re6+ {[%clk 0:00:06]}  Kd4 {[%clk 0:00:11]} 62. Re4+ {[%clk 0:00:06]}  Kd5 {[%clk 0:00:12]} 63. Kg5 {[%clk 0:00:07]}  Kd6 {[%clk 0:00:13]} 64. Kg6 {[%clk 0:00:08]}  Kd5 {[%clk 0:00:14]} 65. Kg7 {[%clk 0:00:09]}  Kd6 {[%clk 0:00:15]} 66. Kg8 {[%clk 0:00:10]}  Kd5 {[%clk 0:00:15]} 67. Kf7 {[%clk 0:00:11]}  Kd6 {[%clk 0:00:16]} 68. Kf6 {[%clk 0:00:11]}  Kd5 {[%clk 0:00:17]} 69. Re7 {[%clk 0:00:11]}  Kd6 {[%clk 0:00:18]} 70. Rd7+ {[%clk 0:00:12]}  Kc6 {[%clk 0:00:19]} 71. Ke6 {[%clk 0:00:13]}  Kc5 {[%clk 0:00:19]} 72. Rc7+ {[%clk 0:00:13]}  Kd4 {[%clk 0:00:20]} 73. Kd6 {[%clk 0:00:13]}  Ke3 {[%clk 0:00:20]} 74. Ke5 {[%clk 0:00:14]}  Kd2 {[%clk 0:00:20]} 75. Kd4 {[%clk 0:00:14]}  Ke2 {[%clk 0:00:20]} 76. Be4 {[%clk 0:00:14]}  Kf2 {[%clk 0:00:21]} 77. Rg7 {[%clk 0:00:15]}  Kf1 {[%clk 0:00:20]} 78. Rg2 {[%clk 0:00:15]}  Ke1 {[%clk 0:00:20]} 79. Ke3 {[%clk 0:00:16]}  Kf1 {[%clk 0:00:21]} 80. Rg3 {[%clk 0:00:16]} 1-0


[Site "https://www.chess.com"]

[Event "Titled Tuesday Blitz March 07 Late 2023"]
[White "Clarke, Brandon G I"]
[Black "Krallis, Christos"]
[WhiteFideId "400319"]
[BlackFideId "4298896"]
[WhiteElo "2414"]
[BlackElo "2243"]
[Result "1-0"]
[Round "09"]
[TimeControl "180+2"]
[Date "2023.03.07"]
[WhiteClock "0:00:37"]
[BlackClock "0:00:08"]

1. e4 {[%clk 0:03:00]}  e5 {[%clk 0:02:58]} 2. Nf3 {[%clk 0:03:01]}  Nc6 {[%clk 0:02:58]} 3. Bc4 {[%clk 0:03:01]}  Bc5 {[%clk 0:02:57]} 4. c3 {[%clk 0:03:00]}  Nf6 {[%clk 0:02:55]} 5. d4 {[%clk 0:03:01]}  exd4 {[%clk 0:02:53]} 6. b4 {[%clk 0:03:01]}  Bb6 {[%clk 0:02:45]} 7. e5 {[%clk 0:03:02]}  d5 {[%clk 0:02:39]} 8. exf6 {[%clk 0:03:02]}  dxc4 {[%clk 0:02:39]} 9. Qe2+ {[%clk 0:03:02]}  Be6 {[%clk 0:02:37]} 10. b5 {[%clk 0:03:03]}  Na5 {[%clk 0:02:30]} 11. fxg7 {[%clk 0:03:01]}  Rg8 {[%clk 0:02:30]} 12. cxd4 {[%clk 0:03:00]}  Bxd4 {[%clk 0:02:28]} 13. Nxd4 {[%clk 0:02:56]}  Qxd4 {[%clk 0:02:28]} 14. Bb2 {[%clk 0:02:56]}  Qd3 {[%clk 0:02:28]} 15. Bf6 {[%clk 0:02:34]}  Qg6 {[%clk 0:02:19]} 16. Qf3 {[%clk 0:02:26]}  Bg4 {[%clk 0:01:42]} 17. Qf4 {[%clk 0:02:14]}  Qf5 {[%clk 0:01:11]} 18. Qxf5 {[%clk 0:02:07]}  Bxf5 {[%clk 0:01:11]} 19. O-O {[%clk 0:02:04]}  Kd7 {[%clk 0:01:06]} 20. Re1 {[%clk 0:02:02]}  Rae8 {[%clk 0:01:04]} 21. Nc3 {[%clk 0:02:02]}  Be6 {[%clk 0:00:49]} 22. Rad1+ {[%clk 0:02:02]}  Kc8 {[%clk 0:00:48]} 23. Ne4 {[%clk 0:02:00]}  Bf5 {[%clk 0:00:34]} 24. Nc3 {[%clk 0:01:22]}  Be6 {[%clk 0:00:27]} 25. Rd4 {[%clk 0:01:18]}  a6 {[%clk 0:00:17]} 26. bxa6 {[%clk 0:00:53]}  Nc6 {[%clk 0:00:14]} 27. axb7+ {[%clk 0:00:53]}  Kxb7 {[%clk 0:00:15]} 28. Rh4 {[%clk 0:00:52]}  Bf5 {[%clk 0:00:15]} 29. Rxe8 {[%clk 0:00:51]}  Rxe8 {[%clk 0:00:15]} 30. f3 {[%clk 0:00:50]}  Bd3 {[%clk 0:00:12]} 31. Rg4 {[%clk 0:00:44]}  Rg8 {[%clk 0:00:10]} 32. Kf2 {[%clk 0:00:43]}  Nb8 {[%clk 0:00:10]} 33. Nd5 {[%clk 0:00:40]}  h5 {[%clk 0:00:09]} 34. Rg5 {[%clk 0:00:38]}  Nd7 {[%clk 0:00:09]} 35. Bc3 {[%clk 0:00:37]}  Bg6 {[%clk 0:00:08]} 36. Ne7 {[%clk 0:00:37]} 1-0


[Site "https://www.chess.com"]

[Event "Titled Tuesday Blitz March 07 Late 2023"]
[White "Czernek, Tymon"]
[Black "Ibarra Jerez, Jose Carlos"]
[WhiteFideId "1199510"]
[BlackFideId "2226332"]
[WhiteElo "2156"]
[BlackElo "2638"]
[Result "0-1"]
[Round "09"]
[TimeControl "180+2"]
[Date "2023.03.07"]
[WhiteClock "0:00:19"]
[BlackClock "0:00:34"]

1. e4 {[%clk 0:02:27]}  c5 {[%clk 0:02:57]} 2. Nf3 {[%clk 0:02:27]}  e6 {[%clk 0:02:57]} 3. d4 {[%clk 0:02:28]}  cxd4 {[%clk 0:02:58]} 4. Nxd4 {[%clk 0:02:28]}  Bc5 {[%clk 0:02:59]} 5. Nc3 {[%clk 0:02:28]}  Qb6 {[%clk 0:02:59]} 6. Na4 {[%clk 0:02:18]}  Qa5+ {[%clk 0:02:59]} 7. c3 {[%clk 0:02:18]}  Bxd4 {[%clk 0:02:59]} 8. Qxd4 {[%clk 0:02:16]}  Nf6 {[%clk 0:03:00]} 9. Bd2 {[%clk 0:02:14]}  Nc6 {[%clk 0:02:58]} 10. Qc4 {[%clk 0:02:09]}  d6 {[%clk 0:02:39]} 11. b3 {[%clk 0:02:06]}  O-O {[%clk 0:02:34]} 12. Nb2 {[%clk 0:02:01]}  d5 {[%clk 0:02:34]} 13. exd5 {[%clk 0:02:01]}  exd5 {[%clk 0:02:33]} 14. Qh4 {[%clk 0:01:58]}  Re8+ {[%clk 0:02:34]} 15. Be2 {[%clk 0:01:57]}  Qa6 {[%clk 0:02:25]} 16. Be3 {[%clk 0:01:56]}  Qa5 {[%clk 0:02:18]} 17. O-O {[%clk 0:01:37]}  Qxc3 {[%clk 0:02:16]} 18. Nd3 {[%clk 0:01:36]}  d4 {[%clk 0:02:05]} 19. Rac1 {[%clk 0:01:32]}  Qa5 {[%clk 0:02:04]} 20. Bg5 {[%clk 0:01:22]}  Rxe2 {[%clk 0:01:57]} 21. Bxf6 {[%clk 0:01:15]}  gxf6 {[%clk 0:01:35]} 22. Rc5 {[%clk 0:01:14]}  Qd2 {[%clk 0:01:17]} 23. Nf4 {[%clk 0:00:33]}  Re1 {[%clk 0:01:12]} 24. g3 {[%clk 0:00:32]}  Ne5 {[%clk 0:00:45]} 25. Qxf6 {[%clk 0:00:25]}  Rxf1+ {[%clk 0:00:40]} 26. Kxf1 {[%clk 0:00:25]}  Qd1+ {[%clk 0:00:41]} 27. Kg2 {[%clk 0:00:26]}  Qf3+ {[%clk 0:00:42]} 28. Kg1 {[%clk 0:00:21]}  Qxf2+ {[%clk 0:00:33]} 29. Kxf2 {[%clk 0:00:19]}  Ng4+ {[%clk 0:00:33]} 30. Kf3 {[%clk 0:00:19]}  Nxf6 {[%clk 0:00:34]} 0-1


[Site "https://www.chess.com"]

[Event "Titled Tuesday Blitz March 07 Late 2023"]
[White "Krzyzanowski, Marcin"]
[Black "Averjanov, Alexey"]
[WhiteFideId "1132199"]
[BlackFideId "14109867"]
[WhiteElo "2471"]
[BlackElo "2599"]
[Result "1/2-1/2"]
[Round "09"]
[TimeControl "180+2"]
[Date "2023.03.07"]
[WhiteClock "0:00:02"]
[BlackClock "0:00:05"]

1. Nf3 {[%clk 0:03:00]}  d5 {[%clk 0:02:59]} 2. g3 {[%clk 0:03:00]}  Nf6 {[%clk 0:02:59]} 3. Bg2 {[%clk 0:03:00]}  e6 {[%clk 0:02:58]} 4. O-O {[%clk 0:03:01]}  Be7 {[%clk 0:02:57]} 5. d3 {[%clk 0:03:01]}  O-O {[%clk 0:02:57]} 6. Nbd2 {[%clk 0:03:00]}  b6 {[%clk 0:02:51]} 7. e4 {[%clk 0:02:49]}  dxe4 {[%clk 0:02:49]} 8. dxe4 {[%clk 0:02:48]}  Bb7 {[%clk 0:02:47]} 9. e5 {[%clk 0:02:42]}  Nfd7 {[%clk 0:02:33]} 10. Re1 {[%clk 0:02:38]}  c5 {[%clk 0:02:24]} 11. Nc4 {[%clk 0:02:33]}  Nc6 {[%clk 0:02:21]} 12. Nd6 {[%clk 0:02:21]}  Bxd6 {[%clk 0:02:20]} 13. Qxd6 {[%clk 0:02:22]}  Ndxe5 {[%clk 0:02:16]} 14. Qxd8 {[%clk 0:02:04]}  Nxf3+ {[%clk 0:02:15]} 15. Bxf3 {[%clk 0:02:05]}  Rfxd8 {[%clk 0:02:14]} 16. c3 {[%clk 0:02:05]}  Na5 {[%clk 0:02:07]} 17. Be2 {[%clk 0:01:58]}  Rd7 {[%clk 0:02:01]} 18. Be3 {[%clk 0:01:55]}  Rad8 {[%clk 0:02:01]} 19. f4 {[%clk 0:01:52]}  Nc6 {[%clk 0:01:57]} 20. Kf2 {[%clk 0:01:52]}  Kf8 {[%clk 0:01:53]} 21. a3 {[%clk 0:01:51]}  Ne7 {[%clk 0:01:51]} 22. Bb5 {[%clk 0:01:43]}  Bc6 {[%clk 0:01:47]} 23. Bxc6 {[%clk 0:01:33]}  Nxc6 {[%clk 0:01:48]} 24. b4 {[%clk 0:01:34]}  cxb4 {[%clk 0:01:44]} 25. axb4 {[%clk 0:01:33]}  Ke7 {[%clk 0:01:34]} 26. Ra3 {[%clk 0:01:26]}  Rc7 {[%clk 0:01:25]} 27. Rea1 {[%clk 0:01:23]}  Rdc8 {[%clk 0:01:19]} 28. Ke2 {[%clk 0:01:23]}  h5 {[%clk 0:01:13]} 29. c4 {[%clk 0:01:05]}  Nxb4 {[%clk 0:00:53]} 30. Rxa7 {[%clk 0:01:05]}  Kf6 {[%clk 0:00:47]} 31. Rxc7 {[%clk 0:00:43]}  Rxc7 {[%clk 0:00:48]} 32. Rc1 {[%clk 0:00:34]}  Rc6 {[%clk 0:00:46]} 33. Bd4+ {[%clk 0:00:34]}  Kg6 {[%clk 0:00:44]} 34. Rc3 {[%clk 0:00:26]}  f6 {[%clk 0:00:43]} 35. Be3 {[%clk 0:00:23]}  Kf5 {[%clk 0:00:40]} 36. Kf3 {[%clk 0:00:20]}  g5 {[%clk 0:00:34]} 37. fxg5 {[%clk 0:00:20]}  fxg5 {[%clk 0:00:35]} 38. h3 {[%clk 0:00:19]}  g4+ {[%clk 0:00:35]} 39. hxg4+ {[%clk 0:00:19]}  hxg4+ {[%clk 0:00:36]} 40. Ke2 {[%clk 0:00:20]}  Ke4 {[%clk 0:00:33]} 41. Bf2 {[%clk 0:00:19]}  e5 {[%clk 0:00:27]} 42. Be1 {[%clk 0:00:15]}  Na6 {[%clk 0:00:24]} 43. Re3+ {[%clk 0:00:15]}  Kd4 {[%clk 0:00:20]} 44. Bc3+ {[%clk 0:00:14]}  Kxc4 {[%clk 0:00:19]} 45. Bxe5 {[%clk 0:00:14]}  Nc5 {[%clk 0:00:15]} 46. Bg7 {[%clk 0:00:09]}  Re6 {[%clk 0:00:13]} 47. Rxe6 {[%clk 0:00:06]}  Nxe6 {[%clk 0:00:14]} 48. Bf6 {[%clk 0:00:06]}  b5 {[%clk 0:00:12]} 49. Ke3 {[%clk 0:00:07]}  Kd5 {[%clk 0:00:11]} 50. Bc3 {[%clk 0:00:06]}  Kc4 {[%clk 0:00:09]} 51. Be5 {[%clk 0:00:04]}  b4 {[%clk 0:00:08]} 52. Ke4 {[%clk 0:00:04]}  b3 {[%clk 0:00:07]} 53. Bb2 {[%clk 0:00:05]}  Nc5+ {[%clk 0:00:06]} 54. Kf5 {[%clk 0:00:05]}  Na4 {[%clk 0:00:06]} 55. Ba3 {[%clk 0:00:03]}  Nc3 {[%clk 0:00:05]} 56. Kxg4 {[%clk 0:00:03]}  Nb5 {[%clk 0:00:05]} 57. Bb2 {[%clk 0:00:03]}  Kd3 {[%clk 0:00:06]} 58. Kf5 {[%clk 0:00:03]}  Kc2 {[%clk 0:00:06]} 59. Ba1 {[%clk 0:00:02]}  Nd6+ {[%clk 0:00:03]} 60. Ke6 {[%clk 0:00:02]}  Nc4 {[%clk 0:00:02]} 61. g4 {[%clk 0:00:02]}  Nb2 {[%clk 0:00:03]} 62. g5 {[%clk 0:00:02]}  Kb1 {[%clk 0:00:03]} 63. g6 {[%clk 0:00:02]}  Kxa1 {[%clk 0:00:02]} 64. g7 {[%clk 0:00:02]}  Na4 {[%clk 0:00:02]} 65. g8=Q {[%clk 0:00:03]}  b2 {[%clk 0:00:02]} 66. Qg7 {[%clk 0:00:03]}  Ka2 {[%clk 0:00:03]} 67. Qg2 {[%clk 0:00:03]}  Ka1 {[%clk 0:00:03]} 68. Qg7 {[%clk 0:00:02]}  Ka2 {[%clk 0:00:03]} 69. Qg2 {[%clk 0:00:02]}  Ka1 {[%clk 0:00:04]} 70. Qa8 {[%clk 0:00:01]}  b1=Q {[%clk 0:00:03]} 71. Qxa4+ {[%clk 0:00:01]}  Qa2+ {[%clk 0:00:04]} 72. Qxa2+ {[%clk 0:00:02]}  Kxa2 {[%clk 0:00:05]} 1/2-1/2


[Site "https://www.chess.com"]